Workbook

Sheet Poule
A1: MEGA Toernooi 2014 | AY1: =COUNTA(U12:W17) -> 18 | AZ1: =COUNTA(AT12:AV17) -> 18 | BA1: =COUNTA(U20:W25) -> 18 | BB1: =COUNTA(AT20:AV25) -> 18 | BJ1: =VALUE(A6) -> 4 | BK1: =B6 -> PA TEAM 1 | BL1: =VALUE(O6) -> 2 | BM1: =P6 -> PB TEAM 1 | BN1: =VALUE(AD6) -> 4 | BO1: =AE6 -> PC TEAM 1 | BP1: =VALUE(AR6) -> 3 | BQ1: =AS6 -> PD TEAM 1
BJ2: =VALUE(A7) -> 1 | BK2: =B7 -> PA TEAM 2 | BL2: =VALUE(O7) -> 3 | BM2: =P7 -> PB TEAM 2 | BN2: =VALUE(AD7) -> 2 | BO2: =AE7 -> PC TEAM 2 | BP2: =VALUE(AR7) -> 4 | BQ2: =AS7 -> PD TEAM 2
A3: Stand | K3: Gewonnen | L3: Gelijk | M3: Verloren | N3: Saldo | O3: Stand | Z3: Gewonnen | AA3: Gelijk | AB3: Verloren | AC3: Saldo | AD3: Stand | AN3: Gewonnen | AO3: Gelijk | AP3: Verloren | AQ3: Saldo | AR3: Stand | BB3: Gewonnen | BC3: Gelijk | BD3: Verloren | BE3: Saldo | BJ3: =VALUE(A8) -> 2 | BK3: =B8 -> PA TEAM 3 | BL3: =VALUE(O8) -> 1 | BM3: =P8 -> PB TEAM 3 | BN3: =VALUE(AD8) -> 3 | BO3: =AE8 -> PC TEAM 3 | BP3: =VALUE(AR8) -> 2 | BQ3: =AS8 -> PD TEAM 3
BJ4: =VALUE(A9) -> 3 | BK4: =B9 -> PA TEAM 4 | BL4: =VALUE(O9) -> 4 | BM4: =P9 -> PB TEAM 4 | BN4: =VALUE(AD9) -> 1 | BO4: =AE9 -> PC TEAM 4 | BP4: =VALUE(AR9) -> 1 | BQ4: =AS9 -> PD TEAM 4
B5: Groep 1 | H5: V | I5: T | J5: P | P5: Groep 2 | W5: V | X5: T | Y5: P | AE5: Groep 3 | AK5: V | AL5: T | AM5: P | AS5: Groep 4 | AY5: V | AZ5: T | BA5: P
A6: =RANK(J6,$J$6:$J$9,0) -> 4 | B6: PA TEAM 1 | H6: =SUMIF($G$12:$L$17,B6,$U$12:$U$17)+SUMIF($N$12:$S$17,B6,$W$12:$W$17) -> 5 | I6: =SUMIF($G$12:$L$17,B6,$W$12:$W$17)+SUMIF($N$12:$S$17,B6,$U$12:$U$17) -> 7 | J6: =(K6*3)+L6+(H6*0.001)-(I6*0.001) -> 0.998 | K6: =SUMPRODUCT(($G$12:$L$17=B6)*($Y$12:$Y$17=3))+SUMPRODUCT(($N$12:$S$17=B6)*($AA$12:$AA$17=3)) -> 0 | L6: =SUMPRODUCT(($G$12:$L$17=B6)*($Y$12:$Y$17=1))+SUMPRODUCT(($N$12:$S$17=B6)*($AA$12:$AA$17=1)) -> 1 | M6: =SUMPRODUCT(($G$12:$L$17=B6)*($Y$12:$Y$17=0))+SUMPRODUCT(($N$12:$S$17=B6)*($AA$12:$AA$17=0)) -> 2 | N6: =H6-I6 -> -2 | O6: =RANK(Y6,$Y$6:$Y$9,0) -> 2 | P6: PB TEAM 1 | W6: =SUMIF($AF$12:$AK$17,P6,$AT$12:$AT$17)+SUMIF($AM$12:$AR$17,P6,$AV$12:$AV$17) -> 3 | X6: =SUMIF($AF$12:$AK$17,P6,$AV$12:$AV$17)+SUMIF($AM$12:$AR$17,P6,$AT$12:$AT$17) -> 2 | Y6: =(Z6*3)+AA6+(W6*0.001)-(X6*0.001) -> 5.001 | Z6: =SUMPRODUCT(($AF$12:$AK$17=P6)*($AX$12:$AX$17=3))+SUMPRODUCT(($AM$12:$AR$17=P6)*($AZ$12:$AZ$17=3)) -> 1 | AA6: =SUMPRODUCT(($AF$12:$AK$17=P6)*($AX$12:$AX$17=1))+SUMPRODUCT(($AM$12:$AR$17=P6)*($AZ$12:$AZ$17=1)) -> 2 | AB6: =SUMPRODUCT(($AF$12:$AK$17=P6)*($AX$12:$AX$17=0))+SUMPRODUCT(($AM$12:$AR$17=P6)*($AZ$12:$AZ$17=0)) -> 0 | AC6: =W6-X6 -> 1 | AD6: =RANK(AM6,$AM$6:$AM$9,0) -> 4 | AE6: PC TEAM 1 | AK6: =SUMIF($G$20:$L$25,AE6,$U$20:$U$25)+SUMIF($N$20:$S$25,AE6,$W$20:$W$25) -> 3 | AL6: =SUMIF($G$20:$L$25,AE6,$W$20:$W$25)+SUMIF($N$20:$S$25,AE6,$U$20:$U$25) -> 5 | AM6: =(AN6*3)+AO6+(AK6*0.001)-(AL6*0.001) -> 2.998 | AN6: =SUMPRODUCT(($G$20:$L$25=AE6)*($Y$20:$Y$25=3))+SUMPRODUCT(($N$20:$S$25=AE6)*($AA$20:$AA$25=3)) -> 1 | AO6: =SUMPRODUCT(($G$20:$L$25=AE6)*($Y$20:$Y$25=1))+SUMPRODUCT(($N$20:$S$25=AE6)*($AA$20:$AA$25=1)) -> 0 | AP6: =SUMPRODUCT(($G$20:$L$25=AE6)*($Y$20:$Y$25=0))+SUMPRODUCT(($N$20:$S$25=AE6)*($AA$20:$AA$25=0)) -> 2 | AQ6: =AK6-AL6 -> -2 | AR6: =RANK(BA6,$BA$6:$BA$9,0) -> 3 | AS6: PD TEAM 1 | AY6: =SUMIF($AF$20:$AK$25,AS6,$AT$20:$AT$25)+SUMIF($AM$20:$AR$25,AS6,$AV$20:$AV$25) -> 4 | AZ6: =SUMIF($AF$20:$AK$25,AS6,$AV$20:$AV$25)+SUMIF($AM$20:$AR$25,AS6,$AT$20:$AT$25) -> 5 | BA6: =(BB6*3)+BC6+(AY6*0.001)-(AZ6*0.001) -> 3.999 | BB6: =SUMPRODUCT(($AF$20:$AK$25=AS6)*($AX$20:$AX$25=3))+SUMPRODUCT(($AM$20:$AR$25=AS6)*($AZ$20:$AZ$25=3)) -> 1 | BC6: =SUMPRODUCT(($AF$20:$AK$25=AS6)*($AX$20:$AX$25=1))+SUMPRODUCT(($AM$20:$AR$25=AS6)*($AZ$20:$AZ$25=1)) -> 1 | BD6: =SUMPRODUCT(($AF$20:$AK$25=AS6)*($AX$20:$AX$25=0))+SUMPRODUCT(($AM$20:$AR$25=AS6)*($AZ$20:$AZ$25=0)) -> 1 | BE6: =AY6-AZ6 -> -1
A7: =RANK(J7,$J$6:$J$9,0) -> 1 | B7: PA TEAM 2 | H7: =SUMIF($G$12:$L$17,B7,$U$12:$U$17)+SUMIF($N$12:$S$17,B7,$W$12:$W$17) -> 7 | I7: =SUMIF($G$12:$L$17,B7,$W$12:$W$17)+SUMIF($N$12:$S$17,B7,$U$12:$U$17) -> 4 | J7: =(K7*3)+L7+(H7*0.001)-(I7*0.001) -> 7.003 | K7: =SUMPRODUCT(($G$12:$L$17=B7)*($Y$12:$Y$17=3))+SUMPRODUCT(($N$12:$S$17=B7)*($AA$12:$AA$17=3)) -> 2 | L7: =SUMPRODUCT(($G$12:$L$17=B7)*($Y$12:$Y$17=1))+SUMPRODUCT(($N$12:$S$17=B7)*($AA$12:$AA$17=1)) -> 1 | M7: =SUMPRODUCT(($G$12:$L$17=B7)*($Y$12:$Y$17=0))+SUMPRODUCT(($N$12:$S$17=B7)*($AA$12:$AA$17=0)) -> 0 | N7: =H7-I7 -> 3 | O7: =RANK(Y7,$Y$6:$Y$9,0) -> 3 | P7: PB TEAM 2 | W7: =SUMIF($AF$12:$AK$17,P7,$AT$12:$AT$17)+SUMIF($AM$12:$AR$17,P7,$AV$12:$AV$17) -> 5 | X7: =SUMIF($AF$12:$AK$17,P7,$AV$12:$AV$17)+SUMIF($AM$12:$AR$17,P7,$AT$12:$AT$17) -> 3 | Y7: =(Z7*3)+AA7+(W7*0.001)-(X7*0.001) -> 3.002 | Z7: =SUMPRODUCT(($AF$12:$AK$17=P7)*($AX$12:$AX$17=3))+SUMPRODUCT(($AM$12:$AR$17=P7)*($AZ$12:$AZ$17=3)) -> 1 | AA7: =SUMPRODUCT(($AF$12:$AK$17=P7)*($AX$12:$AX$17=1))+SUMPRODUCT(($AM$12:$AR$17=P7)*($AZ$12:$AZ$17=1)) -> 0 | AB7: =SUMPRODUCT(($AF$12:$AK$17=P7)*($AX$12:$AX$17=0))+SUMPRODUCT(($AM$12:$AR$17=P7)*($AZ$12:$AZ$17=0)) -> 2 | AC7: =W7-X7 -> 2 | AD7: =RANK(AM7,$AM$6:$AM$9,0) -> 2 | AE7: PC TEAM 2 | AK7: =SUMIF($G$20:$L$25,AE7,$U$20:$U$25)+SUMIF($N$20:$S$25,AE7,$W$20:$W$25) -> 5 | AL7: =SUMIF($G$20:$L$25,AE7,$W$20:$W$25)+SUMIF($N$20:$S$25,AE7,$U$20:$U$25) -> 4 | AM7: =(AN7*3)+AO7+(AK7*0.001)-(AL7*0.001) -> 6.001 | AN7: =SUMPRODUCT(($G$20:$L$25=AE7)*($Y$20:$Y$25=3))+SUMPRODUCT(($N$20:$S$25=AE7)*($AA$20:$AA$25=3)) -> 2 | AO7: =SUMPRODUCT(($G$20:$L$25=AE7)*($Y$20:$Y$25=1))+SUMPRODUCT(($N$20:$S$25=AE7)*($AA$20:$AA$25=1)) -> 0 | AP7: =SUMPRODUCT(($G$20:$L$25=AE7)*($Y$20:$Y$25=0))+SUMPRODUCT(($N$20:$S$25=AE7)*($AA$20:$AA$25=0)) -> 1 | AQ7: =AK7-AL7 -> 1 | AR7: =RANK(BA7,$BA$6:$BA$9,0) -> 4 | AS7: PD TEAM 2 | AY7: =SUMIF($AF$20:$AK$25,AS7,$AT$20:$AT$25)+SUMIF($AM$20:$AR$25,AS7,$AV$20:$AV$25) -> 3 | AZ7: =SUMIF($AF$20:$AK$25,AS7,$AV$20:$AV$25)+SUMIF($AM$20:$AR$25,AS7,$AT$20:$AT$25) -> 4 | BA7: =(BB7*3)+BC7+(AY7*0.001)-(AZ7*0.001) -> 1.999 | BB7: =SUMPRODUCT(($AF$20:$AK$25=AS7)*($AX$20:$AX$25=3))+SUMPRODUCT(($AM$20:$AR$25=AS7)*($AZ$20:$AZ$25=3)) -> 0 | BC7: =SUMPRODUCT(($AF$20:$AK$25=AS7)*($AX$20:$AX$25=1))+SUMPRODUCT(($AM$20:$AR$25=AS7)*($AZ$20:$AZ$25=1)) -> 2 | BD7: =SUMPRODUCT(($AF$20:$AK$25=AS7)*($AX$20:$AX$25=0))+SUMPRODUCT(($AM$20:$AR$25=AS7)*($AZ$20:$AZ$25=0)) -> 1 | BE7: =AY7-AZ7 -> -1
A8: =RANK(J8,$J$6:$J$9,0) -> 2 | B8: PA TEAM 3 | H8: =SUMIF($G$12:$L$17,B8,$U$12:$U$17)+SUMIF($N$12:$S$17,B8,$W$12:$W$17) -> 6 | I8: =SUMIF($G$12:$L$17,B8,$W$12:$W$17)+SUMIF($N$12:$S$17,B8,$U$12:$U$17) -> 4 | J8: =(K8*3)+L8+(H8*0.001)-(I8*0.001) -> 5.002 | K8: =SUMPRODUCT(($G$12:$L$17=B8)*($Y$12:$Y$17=3))+SUMPRODUCT(($N$12:$S$17=B8)*($AA$12:$AA$17=3)) -> 1 | L8: =SUMPRODUCT(($G$12:$L$17=B8)*($Y$12:$Y$17=1))+SUMPRODUCT(($N$12:$S$17=B8)*($AA$12:$AA$17=1)) -> 2 | M8: =SUMPRODUCT(($G$12:$L$17=B8)*($Y$12:$Y$17=0))+SUMPRODUCT(($N$12:$S$17=B8)*($AA$12:$AA$17=0)) -> 0 | N8: =H8-I8 -> 2 | O8: =RANK(Y8,$Y$6:$Y$9,0) -> 1 | P8: PB TEAM 3 | W8: =SUMIF($AF$12:$AK$17,P8,$AT$12:$AT$17)+SUMIF($AM$12:$AR$17,P8,$AV$12:$AV$17) -> 4 | X8: =SUMIF($AF$12:$AK$17,P8,$AV$12:$AV$17)+SUMIF($AM$12:$AR$17,P8,$AT$12:$AT$17) -> 2 | Y8: =(Z8*3)+AA8+(W8*0.001)-(X8*0.001) -> 7.002 | Z8: =SUMPRODUCT(($AF$12:$AK$17=P8)*($AX$12:$AX$17=3))+SUMPRODUCT(($AM$12:$AR$17=P8)*($AZ$12:$AZ$17=3)) -> 2 | AA8: =SUMPRODUCT(($AF$12:$AK$17=P8)*($AX$12:$AX$17=1))+SUMPRODUCT(($AM$12:$AR$17=P8)*($AZ$12:$AZ$17=1)) -> 1 | AB8: =SUMPRODUCT(($AF$12:$AK$17=P8)*($AX$12:$AX$17=0))+SUMPRODUCT(($AM$12:$AR$17=P8)*($AZ$12:$AZ$17=0)) -> 0 | AC8: =W8-X8 -> 2 | AD8: =RANK(AM8,$AM$6:$AM$9,0) -> 3 | AE8: PC TEAM 3 | AK8: =SUMIF($G$20:$L$25,AE8,$U$20:$U$25)+SUMIF($N$20:$S$25,AE8,$W$20:$W$25) -> 4 | AL8: =SUMIF($G$20:$L$25,AE8,$W$20:$W$25)+SUMIF($N$20:$S$25,AE8,$U$20:$U$25) -> 5 | AM8: =(AN8*3)+AO8+(AK8*0.001)-(AL8*0.001) -> 2.999 | AN8: =SUMPRODUCT(($G$20:$L$25=AE8)*($Y$20:$Y$25=3))+SUMPRODUCT(($N$20:$S$25=AE8)*($AA$20:$AA$25=3)) -> 1 | AO8: =SUMPRODUCT(($G$20:$L$25=AE8)*($Y$20:$Y$25=1))+SUMPRODUCT(($N$20:$S$25=AE8)*($AA$20:$AA$25=1)) -> 0 | AP8: =SUMPRODUCT(($G$20:$L$25=AE8)*($Y$20:$Y$25=0))+SUMPRODUCT(($N$20:$S$25=AE8)*($AA$20:$AA$25=0)) -> 2 | AQ8: =AK8-AL8 -> -1 | AR8: =RANK(BA8,$BA$6:$BA$9,0) -> 2 | AS8: PD TEAM 3 | AY8: =SUMIF($AF$20:$AK$25,AS8,$AT$20:$AT$25)+SUMIF($AM$20:$AR$25,AS8,$AV$20:$AV$25) -> 3 | AZ8: =SUMIF($AF$20:$AK$25,AS8,$AV$20:$AV$25)+SUMIF($AM$20:$AR$25,AS8,$AT$20:$AT$25) -> 2 | BA8: =(BB8*3)+BC8+(AY8*0.001)-(AZ8*0.001) -> 4.001 | BB8: =SUMPRODUCT(($AF$20:$AK$25=AS8)*($AX$20:$AX$25=3))+SUMPRODUCT(($AM$20:$AR$25=AS8)*($AZ$20:$AZ$25=3)) -> 1 | BC8: =SUMPRODUCT(($AF$20:$AK$25=AS8)*($AX$20:$AX$25=1))+SUMPRODUCT(($AM$20:$AR$25=AS8)*($AZ$20:$AZ$25=1)) -> 1 | BD8: =SUMPRODUCT(($AF$20:$AK$25=AS8)*($AX$20:$AX$25=0))+SUMPRODUCT(($AM$20:$AR$25=AS8)*($AZ$20:$AZ$25=0)) -> 1 | BE8: =AY8-AZ8 -> 1
A9: =RANK(J9,$J$6:$J$9,0) -> 3 | B9: PA TEAM 4 | H9: =SUMIF($G$12:$L$17,B9,$U$12:$U$17)+SUMIF($N$12:$S$17,B9,$W$12:$W$17) -> 6 | I9: =SUMIF($G$12:$L$17,B9,$W$12:$W$17)+SUMIF($N$12:$S$17,B9,$U$12:$U$17) -> 9 | J9: =(K9*3)+L9+(H9*0.001)-(I9*0.001) -> 2.997 | K9: =SUMPRODUCT(($G$12:$L$17=B9)*($Y$12:$Y$17=3))+SUMPRODUCT(($N$12:$S$17=B9)*($AA$12:$AA$17=3)) -> 1 | L9: =SUMPRODUCT(($G$12:$L$17=B9)*($Y$12:$Y$17=1))+SUMPRODUCT(($N$12:$S$17=B9)*($AA$12:$AA$17=1)) -> 0 | M9: =SUMPRODUCT(($G$12:$L$17=B9)*($Y$12:$Y$17=0))+SUMPRODUCT(($N$12:$S$17=B9)*($AA$12:$AA$17=0)) -> 2 | N9: =H9-I9 -> -3 | O9: =RANK(Y9,$Y$6:$Y$9,0) -> 4 | P9: PB TEAM 4 | W9: =SUMIF($AF$12:$AK$17,P9,$AT$12:$AT$17)+SUMIF($AM$12:$AR$17,P9,$AV$12:$AV$17) -> 1 | X9: =SUMIF($AF$12:$AK$17,P9,$AV$12:$AV$17)+SUMIF($AM$12:$AR$17,P9,$AT$12:$AT$17) -> 6 | Y9: =(Z9*3)+AA9+(W9*0.001)-(X9*0.001) -> 0.995 | Z9: =SUMPRODUCT(($AF$12:$AK$17=P9)*($AX$12:$AX$17=3))+SUMPRODUCT(($AM$12:$AR$17=P9)*($AZ$12:$AZ$17=3)) -> 0 | AA9: =SUMPRODUCT(($AF$12:$AK$17=P9)*($AX$12:$AX$17=1))+SUMPRODUCT(($AM$12:$AR$17=P9)*($AZ$12:$AZ$17=1)) -> 1 | AB9: =SUMPRODUCT(($AF$12:$AK$17=P9)*($AX$12:$AX$17=0))+SUMPRODUCT(($AM$12:$AR$17=P9)*($AZ$12:$AZ$17=0)) -> 2 | AC9: =W9-X9 -> -5 | AD9: =RANK(AM9,$AM$6:$AM$9,0) -> 1 | AE9: PC TEAM 4 | AK9: =SUMIF($G$20:$L$25,AE9,$U$20:$U$25)+SUMIF($N$20:$S$25,AE9,$W$20:$W$25) -> 7 | AL9: =SUMIF($G$20:$L$25,AE9,$W$20:$W$25)+SUMIF($N$20:$S$25,AE9,$U$20:$U$25) -> 5 | AM9: =(AN9*3)+AO9+(AK9*0.001)-(AL9*0.001) -> 6.002 | AN9: =SUMPRODUCT(($G$20:$L$25=AE9)*($Y$20:$Y$25=3))+SUMPRODUCT(($N$20:$S$25=AE9)*($AA$20:$AA$25=3)) -> 2 | AO9: =SUMPRODUCT(($G$20:$L$25=AE9)*($Y$20:$Y$25=1))+SUMPRODUCT(($N$20:$S$25=AE9)*($AA$20:$AA$25=1)) -> 0 | AP9: =SUMPRODUCT(($G$20:$L$25=AE9)*($Y$20:$Y$25=0))+SUMPRODUCT(($N$20:$S$25=AE9)*($AA$20:$AA$25=0)) -> 1 | AQ9: =AK9-AL9 -> 2 | AR9: =RANK(BA9,$BA$6:$BA$9,0) -> 1 | AS9: PD TEAM 4 | AY9: =SUMIF($AF$20:$AK$25,AS9,$AT$20:$AT$25)+SUMIF($AM$20:$AR$25,AS9,$AV$20:$AV$25) -> 4 | AZ9: =SUMIF($AF$20:$AK$25,AS9,$AV$20:$AV$25)+SUMIF($AM$20:$AR$25,AS9,$AT$20:$AT$25) -> 3 | BA9: =(BB9*3)+BC9+(AY9*0.001)-(AZ9*0.001) -> 5.001 | BB9: =SUMPRODUCT(($AF$20:$AK$25=AS9)*($AX$20:$AX$25=3))+SUMPRODUCT(($AM$20:$AR$25=AS9)*($AZ$20:$AZ$25=3)) -> 1 | BC9: =SUMPRODUCT(($AF$20:$AK$25=AS9)*($AX$20:$AX$25=1))+SUMPRODUCT(($AM$20:$AR$25=AS9)*($AZ$20:$AZ$25=1)) -> 2 | BD9: =SUMPRODUCT(($AF$20:$AK$25=AS9)*($AX$20:$AX$25=0))+SUMPRODUCT(($AM$20:$AR$25=AS9)*($AZ$20:$AZ$25=0)) -> 0 | BE9: =AY9-AZ9 -> 1
A11: Scheidsrechter | D11: Tijd | G11: HAL 1 | U11: Uitslag | Y11: Punten | AC11: Tijd | AF11: HAL 2 | AT11: Uitslag | AX11: Punten | BD11: Scheidsrechter
A12: EW | D12: 17:30:00 | G12: =B6 -> PA TEAM 1 | M12: -- | N12: =B7 -> PA TEAM 2 | U12: 1 | V12: -- | W12: 2 | Y12: =IF(U12="","",IF(U12>W12,3,IF(U12=W12,1,0))) -> 0 | AA12: =IF(W12="","",IF(W12>U12,3,IF(W12=U12,1,0))) -> 3 | AC12: 17:30:00 | AF12: =P6 -> PB TEAM 1 | AL12: -- | AM12: =P7 -> PB TEAM 2 | AT12: 1 | AU12: -- | AV12: 0 | AX12: =IF(AT12="","",IF(AT12>AV12,3,IF(AT12=AV12,1,0))) -> 3 | AZ12: =IF(AV12="","",IF(AV12>AT12,3,IF(AV12=AT12,1,0))) -> 0 | BD12: PD
A13: RH | D13: 17:56:00 | G13: =B8 -> PA TEAM 3 | M13: -- | N13: =B9 -> PA TEAM 4 | U13: 3 | V13: -- | W13: 1 | Y13: =IF(U13="","",IF(U13>W13,3,IF(U13=W13,1,0))) -> 3 | AA13: =IF(W13="","",IF(W13>U13,3,IF(W13=U13,1,0))) -> 0 | AC13: 17:56:00 | AF13: =P8 -> PB TEAM 3 | AL13: -- | AM13: =P9 -> PB TEAM 4 | AT13: 1 | AU13: -- | AV13: 0 | AX13: =IF(AT13="","",IF(AT13>AV13,3,IF(AT13=AV13,1,0))) -> 3 | AZ13: =IF(AV13="","",IF(AV13>AT13,3,IF(AV13=AT13,1,0))) -> 0 | BD13: IG
A14: EW | D14: 18:22:00 | G14: =B9 -> PA TEAM 4 | M14: -- | N14: =B6 -> PA TEAM 1 | U14: 3 | V14: -- | W14: 2 | Y14: =IF(U14="","",IF(U14>W14,3,IF(U14=W14,1,0))) -> 3 | AA14: 0 | AC14: 18:22:00 | AF14: =P9 -> PB TEAM 4 | AL14: -- | AM14: =P6 -> PB TEAM 1 | AT14: 1 | AU14: -- | AV14: 1 | AX14: =IF(AT14="","",IF(AT14>AV14,3,IF(AT14=AV14,1,0))) -> 1 | AZ14: 1 | BD14: PD
A15: RH | D15: 18:48:00 | G15: =B7 -> PA TEAM 2 | M15: -- | N15: =B8 -> PA TEAM 3 | U15: 1 | V15: -- | W15: 1 | Y15: 1 | AA15: 1 | AC15: 18:48:00 | AF15: =P7 -> PB TEAM 2 | AL15: -- | AM15: =P8 -> PB TEAM 3 | AT15: 1 | AU15: -- | AV15: 2 | AX15: 0 | AZ15: 3 | BD15: IG
A16: EW | D16: 19:14:00 | G16: =B7 -> PA TEAM 2 | M16: -- | N16: =B9 -> PA TEAM 4 | U16: 4 | V16: -- | W16: 2 | Y16: 3 | AA16: 0 | AC16: 19:14:00 | AF16: =P6 -> PB TEAM 1 | AL16: -- | AM16: =P8 -> PB TEAM 3 | AT16: 1 | AU16: -- | AV16: 1 | AX16: 1 | AZ16: 1 | BD16: PD
A17: RH | D17: 19:40:00 | G17: =B6 -> PA TEAM 1 | M17: -- | N17: =B8 -> PA TEAM 3 | U17: 2 | V17: -- | W17: 2 | Y17: 1 | AA17: 1 | AC17: 19:40:00 | AF17: =P7 -> PB TEAM 2 | AL17: -- | AM17: =P9 -> PB TEAM 4 | AT17: 4 | AU17: -- | AV17: 0 | AX17: 3 | AZ17: 0 | BD17: IG
D19: Tijd | G19: HAL 1 | U19: Uitslag | Y19: Punten | AC19: Tijd | AF19: HAL 2 | AT19: Uitslag | AX19: Punten
A20: EW | D20: 17:43:00 | G20: =AE6 -> PC TEAM 1 | M20: -- | N20: =AE7 -> PC TEAM 2 | U20: 1 | V20: -- | W20: 2 | Y20: =IF(U20="","",IF(U20>W20,3,IF(U20=W20,1,0))) -> 0 | AA20: =IF(W20="","",IF(W20>U20,3,IF(W20=U20,1,0))) -> 3 | AC20: 17:43:00 | AF20: =AS6 -> PD TEAM 1 | AL20: -- | AM20: =AS7 -> PD TEAM 2 | AT20: 3 | AU20: -- | AV20: 2 | AX20: =IF(AT20="","",IF(AT20>AV20,3,IF(AT20=AV20,1,0))) -> 3 | AZ20: =IF(AV20="","",IF(AV20>AT20,3,IF(AV20=AT20,1,0))) -> 0 | BD20: PD
A21: RH | D21: 18:09:00 | G21: =AE8 -> PC TEAM 3 | M21: -- | N21: =AE9 -> PC TEAM 4 | U21: 3 | V21: -- | W21: 2 | Y21: =IF(U21="","",IF(U21>W21,3,IF(U21=W21,1,0))) -> 3 | AA21: =IF(W21="","",IF(W21>U21,3,IF(W21=U21,1,0))) -> 0 | AC21: 18:09:00 | AF21: =AS8 -> PD TEAM 3 | AL21: -- | AM21: =AS9 -> PD TEAM 4 | AT21: 1 | AU21: -- | AV21: 2 | AX21: =IF(AT21="","",IF(AT21>AV21,3,IF(AT21=AV21,1,0))) -> 0 | AZ21: =IF(AV21="","",IF(AV21>AT21,3,IF(AV21=AT21,1,0))) -> 3 | BD21: IG
A22: EW | D22: 18:35:00 | G22: =AE9 -> PC TEAM 4 | M22: -- | N22: =AE6 -> PC TEAM 1 | U22: 3 | V22: -- | W22: 1 | Y22: =IF(U22="","",IF(U22>W22,3,IF(U22=W22,1,0))) -> 3 | AA22: 0 | AC22: 18:35:00 | AF22: =AS9 -> PD TEAM 4 | AL22: -- | AM22: =AS6 -> PD TEAM 1 | AT22: 1 | AU22: -- | AV22: 1 | AX22: =IF(AT22="","",IF(AT22>AV22,3,IF(AT22=AV22,1,0))) -> 1 | AZ22: 1 | BD22: PD
A23: RH | D23: 19:01:00 | G23: =AE7 -> PC TEAM 2 | M23: -- | N23: =AE8 -> PC TEAM 3 | U23: 2 | V23: -- | W23: 1 | Y23: 3 | AA23: 0 | AC23: 19:01:00 | AF23: =AS7 -> PD TEAM 2 | AL23: -- | AM23: =AS8 -> PD TEAM 3 | AT23: 0 | AU23: -- | AV23: 0 | AX23: 1 | AZ23: 1 | BD23: IG
A24: EW | D24: 19:27:00 | G24: =AE6 -> PC TEAM 1 | M24: -- | N24: =AE8 -> PC TEAM 3 | U24: 1 | V24: -- | W24: 0 | Y24: 3 | AA24: 0 | AC24: 19:27:00 | AF24: =AS7 -> PD TEAM 2 | AL24: -- | AM24: =AS9 -> PD TEAM 4 | AT24: 1 | AU24: -- | AV24: 1 | AX24: 1 | AZ24: 1 | BD24: PD
A25: RH | D25: 19:53:00 | G25: =AE9 -> PC TEAM 4 | M25: -- | N25: =AE7 -> PC TEAM 2 | U25: 2 | V25: -- | W25: 1 | Y25: 3 | AA25: 0 | AC25: 19:53:00 | AF25: =AS6 -> PD TEAM 1 | AL25: -- | AM25: =AS8 -> PD TEAM 3 | AT25: 0 | AU25: -- | AV25: 2 | AX25: 0 | AZ25: 3 | BD25: IG
D41: Scheidsrechters | I41: Scheidsrechter 1 | O41: EW
I42: Scheidsrechter 2 | O42: PD
I43: Scheidsrechter 3 | O43: RH
I44: Scheidsrechter 4 | O44: IG

Sheet Finale's
F5: Kwartfinale | AY5: =Poule!AY1 -> 18 | AZ5: =Poule!BJ1 -> 4 | BA5: =Poule!BK1 -> PA TEAM 1 | BB5: =Poule!BL1 -> 2 | BC5: =Poule!BM1 -> PB TEAM 1 | BD5: =Poule!BN1 -> 4 | BE5: =Poule!BO1 -> PC TEAM 1 | BF5: =Poule!BP1 -> 3 | BG5: =Poule!BQ1 -> PD TEAM 1
J6: HAL 1 | Z6: HAL 2 | AY6: =Poule!AZ1 -> 18 | AZ6: =Poule!BJ2 -> 1 | BA6: =Poule!BK2 -> PA TEAM 2 | BB6: =Poule!BL2 -> 3 | BC6: =Poule!BM2 -> PB TEAM 2 | BD6: =Poule!BN2 -> 2 | BE6: =Poule!BO2 -> PC TEAM 2 | BF6: =Poule!BP2 -> 4 | BG6: =Poule!BQ2 -> PD TEAM 2
C7: 20:15:00 | E7: A | F7: Nr 1 groep 1 | K7: Nr 2 groep 3 | O7: Scheidsrechter | S7: 20:15:00 | U7: B | V7: Nr 1 groep 2 | AA7: Nr 2 groep 4 | AE7: Scheidsrechter | AY7: =Poule!BA1 -> 18 | AZ7: =Poule!BJ3 -> 2 | BA7: =Poule!BK3 -> PA TEAM 3 | BB7: =Poule!BL3 -> 1 | BC7: =Poule!BM3 -> PB TEAM 3 | BD7: =Poule!BN3 -> 3 | BE7: =Poule!BO3 -> PC TEAM 3 | BF7: =Poule!BP3 -> 2 | BG7: =Poule!BQ3 -> PD TEAM 3
F8: =IF(AY5=18,VLOOKUP(1,AZ5:BA8,2,0),"") -> PA TEAM 2 | J8: -- | K8: =IF(AY7=18,VLOOKUP(2,BD5:BE8,2,0),"") -> PC TEAM 2 | O8: EW | Q8: - | V8: =IF(AY6=18,VLOOKUP(1,BB5:BC8,2,0),"") -> PB TEAM 3 | Z8: -- | AA8: =IF(AY8=18,VLOOKUP(2,BF5:BG8,2,0),"") -> PD TEAM 3 | AE8: PD | AG8: - | AY8: =Poule!BB1 -> 18 | AZ8: =Poule!BJ4 -> 3 | BA8: =Poule!BK4 -> PA TEAM 4 | BB8: =Poule!BL4 -> 4 | BC8: =Poule!BM4 -> PB TEAM 4 | BD8: =Poule!BN4 -> 1 | BE8: =Poule!BO4 -> PC TEAM 4 | BF8: =Poule!BP4 -> 1 | BG8: =Poule!BQ4 -> PD TEAM 4
J9: HAL 1 | Z9: HAL 2
C10: 20:28:00 | E10: C | F10: Nr 1 groep 3 | K10: Nr 2 groep 1 | O10: Scheidsrechter | S10: 20:28:00 | U10: D | V10: Nr 1 groep 4 | AA10: Nr 2 groep 2 | AE10: Scheidsrechter
F11: =IF(AY7=18,VLOOKUP(1,BD5:BE8,2,0),"") -> PC TEAM 4 | K11: =IF(AY6=18,VLOOKUP(2,AZ5:BA8,2,0),"") -> PA TEAM 3 | O11: RH | Q11: - | V11: =IF(AY8=18,VLOOKUP(1,BF5:BG8,2,0),"") -> PD TEAM 4 | AA11: =IF(AY5=18,VLOOKUP(2,BB5:BC8,2,0),"") -> PB TEAM 1 | AE11: IG | AG11: -
F13: Halve finale
J14: HAL 1 | Z14: HAL 1
C15: 20:50:00 | E15: E | F15: Winnaar A | K15: Winnaar B | O15: Scheidsrechter | S15: 21:07:00 | U15: F | V15: Winnaar C | AA15: Winnaar D | AE15: Scheidsrechter
F16: =IF(P8="","",IF(P8>R8,F8,K8)) ->  | K16: =IF(AF8="","",IF(AF8>AH8,V8,AA8)) ->  | O16: EW | Q16: - | V16: =IF(P11="","",IF(P11>R11,F11,K11)) ->  | AA16: =IF(AF11="","",IF(AF11>AH11,V11,AA11)) ->  | AE16: PD | AG16: -
F18: Finale
R19: HAL 1
J20: 21:25:00 | N20: Winnaar E | S20: Winnaar F
N21: =IF(P16="","",IF(P16>R16,F16,K16)) ->  | S21: =IF(AF16="","",IF(AF16>AH16,V16,AA16)) ->  | Y21: - | AE21: Scheidsrechter
AE22: Mario van der Ende
O23: Winnaar MEGA toernooi
O25: =IF(X21="","",IF(X21>Z21,N21,S21)) -> 

Sheet GROEP-1
A1: MEGA TOERNOOI | O1: Scores By: OnlineExcelCursus.NL
A4: =Poule!D11 -> Tijd | B4: =Poule!E11 -> 0 | C4: =Poule!G11 -> HAL 1 | H4: =Poule!U11 -> Uitslag | L4: =Poule!Y11 -> Punten
A5: =Poule!D12 -> 17:30:00 | B5: =Poule!E12 -> 00:00:00 | C5: =Poule!G12 -> PA TEAM 1 | D5: =Poule!H12 -> 0 | E5: =Poule!M12 -> -- | F5: =Poule!N12 -> PA TEAM 2 | G5: =Poule!O12 -> 0 | H5: =Poule!U12 -> 1 | I5: =Poule!V12 -> -- | J5: =Poule!W12 -> 2 | L5: =Poule!Y12 -> 0 | N5: =Poule!AA12 -> 3
A6: =Poule!D13 -> 17:56:00 | B6: =Poule!E13 -> 00:00:00 | C6: =Poule!G13 -> PA TEAM 3 | D6: =Poule!H13 -> 0 | E6: =Poule!M13 -> -- | F6: =Poule!N13 -> PA TEAM 4 | G6: =Poule!O13 -> 0 | H6: =Poule!U13 -> 3 | I6: =Poule!V13 -> -- | J6: =Poule!W13 -> 1 | L6: =Poule!Y13 -> 3 | N6: =Poule!AA13 -> 0
A7: =Poule!D14 -> 18:22:00 | B7: =Poule!E14 -> 00:00:00 | C7: =Poule!G14 -> PA TEAM 4 | D7: =Poule!H14 -> 0 | E7: =Poule!M14 -> -- | F7: =Poule!N14 -> PA TEAM 1 | G7: =Poule!O14 -> 0 | H7: =Poule!U14 -> 3 | I7: =Poule!V14 -> -- | J7: =Poule!W14 -> 2 | L7: =Poule!Y14 -> 3 | N7: =Poule!AA14 -> 0
A8: =Poule!D15 -> 18:48:00 | B8: =Poule!E15 -> 00:00:00 | C8: =Poule!G15 -> PA TEAM 2 | D8: =Poule!H15 -> 0 | E8: =Poule!M15 -> -- | F8: =Poule!N15 -> PA TEAM 3 | G8: =Poule!O15 -> 0 | H8: =Poule!U15 -> 1 | I8: =Poule!V15 -> -- | J8: =Poule!W15 -> 1 | L8: =Poule!Y15 -> 1 | N8: =Poule!AA15 -> 1
A9: =Poule!D16 -> 19:14:00 | B9: =Poule!E16 -> 00:00:00 | C9: =Poule!G16 -> PA TEAM 2 | D9: =Poule!H16 -> 0 | E9: =Poule!M16 -> -- | F9: =Poule!N16 -> PA TEAM 4 | G9: =Poule!O16 -> 0 | H9: =Poule!U16 -> 4 | I9: =Poule!V16 -> -- | J9: =Poule!W16 -> 2 | L9: =Poule!Y16 -> 3 | N9: =Poule!AA16 -> 0
A10: =Poule!D17 -> 19:40:00 | B10: =Poule!E17 -> 00:00:00 | C10: =Poule!G17 -> PA TEAM 1 | D10: =Poule!H17 -> 0 | E10: =Poule!M17 -> -- | F10: =Poule!N17 -> PA TEAM 3 | G10: =Poule!O17 -> 0 | H10: =Poule!U17 -> 2 | I10: =Poule!V17 -> -- | J10: =Poule!W17 -> 2 | L10: =Poule!Y17 -> 1 | N10: =Poule!AA17 -> 1
A13: =Poule!A3 -> Stand | B13: =Poule!B5 -> Groep 1 | H13: =Poule!H5 -> V | I13: =Poule!I5 -> T | J13: =Poule!J5 -> P | K13: =Poule!K3 -> Gewonnen | L13: =Poule!L3 -> Gelijk | M13: =Poule!M3 -> Verloren | N13: =Poule!N3 -> Saldo
A14: =Poule!A4 -> 0 | K14: =Poule!K4 -> 0 | L14: =Poule!L4 -> 0 | M14: =Poule!M4 -> 0 | N14: =Poule!N4 -> 0
A15: =Poule!A5 -> 0 | K15: =Poule!K5 -> 0 | L15: =Poule!L5 -> 0 | M15: =Poule!M5 -> 0 | N15: =Poule!N5 -> 0
A16: =Poule!A6 -> 4 | B16: =Poule!B6 -> PA TEAM 1 | C16: =Poule!C6 -> 0 | D16: =Poule!D6 -> 0 | E16: =Poule!E6 -> 0 | F16: =Poule!F6 -> 0 | G16: =Poule!G6 -> 0 | H16: =Poule!H6 -> 5 | I16: =Poule!I6 -> 7 | J16: =Poule!J6 -> 0.998 | K16: =Poule!K6 -> 0 | L16: =Poule!L6 -> 1 | M16: =Poule!M6 -> 2 | N16: =Poule!N6 -> -2
A17: =Poule!A7 -> 1 | B17: =Poule!B7 -> PA TEAM 2 | C17: =Poule!C7 -> 0 | D17: =Poule!D7 -> 0 | E17: =Poule!E7 -> 0 | F17: =Poule!F7 -> 0 | G17: =Poule!G7 -> 0 | H17: =Poule!H7 -> 7 | I17: =Poule!I7 -> 4 | J17: =Poule!J7 -> 7.003 | K17: =Poule!K7 -> 2 | L17: =Poule!L7 -> 1 | M17: =Poule!M7 -> 0 | N17: =Poule!N7 -> 3
A18: =Poule!A8 -> 2 | B18: =Poule!B8 -> PA TEAM 3 | C18: =Poule!C8 -> 0 | D18: =Poule!D8 -> 0 | E18: =Poule!E8 -> 0 | F18: =Poule!F8 -> 0 | G18: =Poule!G8 -> 0 | H18: =Poule!H8 -> 6 | I18: =Poule!I8 -> 4 | J18: =Poule!J8 -> 5.002 | K18: =Poule!K8 -> 1 | L18: =Poule!L8 -> 2 | M18: =Poule!M8 -> 0 | N18: =Poule!N8 -> 2
A19: =Poule!A9 -> 3 | B19: =Poule!B9 -> PA TEAM 4 | C19: =Poule!C9 -> 0 | D19: =Poule!D9 -> 0 | E19: =Poule!E9 -> 0 | F19: =Poule!F9 -> 0 | G19: =Poule!G9 -> 0 | H19: =Poule!H9 -> 6 | I19: =Poule!I9 -> 9 | J19: =Poule!J9 -> 2.997 | K19: =Poule!K9 -> 1 | L19: =Poule!L9 -> 0 | M19: =Poule!M9 -> 2 | N19: =Poule!N9 -> -3

Sheet GROEP-2
A1: MEGA TOERNOOI | M1: Scores By: OnlineExcelCursus.NL
A4: =Poule!AC11 -> Tijd | C4: =Poule!AF11 -> HAL 2 | F4: =Poule!AT11 -> Uitslag | J4: =Poule!AX11 -> Punten
A5: =Poule!AC12 -> 17:30:00 | B5: =Poule!AD12 -> 00:00:00 | C5: =Poule!AF12 -> PB TEAM 1 | D5: =Poule!AL12 -> -- | E5: =Poule!AM12 -> PB TEAM 2 | F5: =Poule!AT12 -> 1 | G5: =Poule!AU12 -> -- | H5: =Poule!AV12 -> 0 | J5: =Poule!AX12 -> 3 | L5: =Poule!AZ12 -> 0
A6: =Poule!AC13 -> 17:56:00 | B6: =Poule!AD13 -> 00:00:00 | C6: =Poule!AF13 -> PB TEAM 3 | D6: =Poule!AL13 -> -- | E6: =Poule!AM13 -> PB TEAM 4 | F6: =Poule!AT13 -> 1 | G6: =Poule!AU13 -> -- | H6: =Poule!AV13 -> 0 | J6: =Poule!AX13 -> 3 | L6: =Poule!AZ13 -> 0
A7: =Poule!AC14 -> 18:22:00 | B7: =Poule!AD14 -> 00:00:00 | C7: =Poule!AF14 -> PB TEAM 4 | D7: =Poule!AL14 -> -- | E7: =Poule!AM14 -> PB TEAM 1 | F7: =Poule!AT14 -> 1 | G7: =Poule!AU14 -> -- | H7: =Poule!AV14 -> 1 | J7: =Poule!AX14 -> 1 | L7: =Poule!AZ14 -> 1
A8: =Poule!AC15 -> 18:48:00 | B8: =Poule!AD15 -> 00:00:00 | C8: =Poule!AF15 -> PB TEAM 2 | D8: =Poule!AL15 -> -- | E8: =Poule!AM15 -> PB TEAM 3 | F8: =Poule!AT15 -> 1 | G8: =Poule!AU15 -> -- | H8: =Poule!AV15 -> 2 | J8: =Poule!AX15 -> 0 | L8: =Poule!AZ15 -> 3
A9: =Poule!AC16 -> 19:14:00 | B9: =Poule!AD16 -> 00:00:00 | C9: =Poule!AF16 -> PB TEAM 1 | D9: =Poule!AL16 -> -- | E9: =Poule!AM16 -> PB TEAM 3 | F9: =Poule!AT16 -> 1 | G9: =Poule!AU16 -> -- | H9: =Poule!AV16 -> 1 | J9: =Poule!AX16 -> 1 | L9: =Poule!AZ16 -> 1
A10: =Poule!AC17 -> 19:40:00 | B10: =Poule!AD17 -> 00:00:00 | C10: =Poule!AF17 -> PB TEAM 2 | D10: =Poule!AL17 -> -- | E10: =Poule!AM17 -> PB TEAM 4 | F10: =Poule!AT17 -> 4 | G10: =Poule!AU17 -> -- | H10: =Poule!AV17 -> 0 | J10: =Poule!AX17 -> 3 | L10: =Poule!AZ17 -> 0
A14: =Poule!O3 -> Stand | B14: =Poule!P5 -> Groep 2 | F14: =Poule!W5 -> V | G14: =Poule!X5 -> T | H14: =Poule!Y5 -> P | I14: =Poule!Z3 -> Gewonnen | J14: =Poule!AA3 -> Gelijk | K14: =Poule!AB3 -> Verloren | L14: =Poule!AC3 -> Saldo
A15: =Poule!O4 -> 0 | I15: =Poule!Z4 -> 0 | J15: =Poule!AA4 -> 0 | K15: =Poule!AB4 -> 0 | L15: =Poule!AC4 -> 0
A16: =Poule!O5 -> 0 | I16: =Poule!Z5 -> 0 | J16: =Poule!AA5 -> 0 | K16: =Poule!AB5 -> 0 | L16: =Poule!AC5 -> 0
A17: =Poule!O6 -> 2 | B17: =Poule!P6 -> PB TEAM 1 | F17: =Poule!W6 -> 3 | G17: =Poule!X6 -> 2 | H17: =Poule!Y6 -> 5.001 | I17: =Poule!Z6 -> 1 | J17: =Poule!AA6 -> 2 | K17: =Poule!AB6 -> 0 | L17: =Poule!AC6 -> 1
A18: =Poule!O7 -> 3 | B18: =Poule!P7 -> PB TEAM 2 | F18: =Poule!W7 -> 5 | G18: =Poule!X7 -> 3 | H18: =Poule!Y7 -> 3.002 | I18: =Poule!Z7 -> 1 | J18: =Poule!AA7 -> 0 | K18: =Poule!AB7 -> 2 | L18: =Poule!AC7 -> 2
A19: =Poule!O8 -> 1 | B19: =Poule!P8 -> PB TEAM 3 | F19: =Poule!W8 -> 4 | G19: =Poule!X8 -> 2 | H19: =Poule!Y8 -> 7.002 | I19: =Poule!Z8 -> 2 | J19: =Poule!AA8 -> 1 | K19: =Poule!AB8 -> 0 | L19: =Poule!AC8 -> 2
A20: =Poule!O9 -> 4 | B20: =Poule!P9 -> PB TEAM 4 | F20: =Poule!W9 -> 1 | G20: =Poule!X9 -> 6 | H20: =Poule!Y9 -> 0.995 | I20: =Poule!Z9 -> 0 | J20: =Poule!AA9 -> 1 | K20: =Poule!AB9 -> 2 | L20: =Poule!AC9 -> -5

Sheet GROEP-3
A1: MEGA TOERNOOI | M1: Scores By: OnlineExcelCursus.NL
A4: =Poule!D19 -> Tijd | B4: =Poule!E19 -> 0 | C4: =Poule!G19 -> HAL 1 | F4: =Poule!U19 -> Uitslag | G4: =Poule!V19 -> 0 | H4: =Poule!W19 -> 0 | J4: =Poule!Y19 -> Punten
A5: =Poule!D20 -> 17:43:00 | B5: =Poule!E20 -> 00:00:00 | C5: =Poule!G20 -> PC TEAM 1 | D5: =Poule!M20 -> -- | E5: =Poule!N20 -> PC TEAM 2 | F5: =Poule!U20 -> 1 | G5: =Poule!V20 -> -- | H5: =Poule!W20 -> 2 | J5: =Poule!Y20 -> 0 | L5: =Poule!AA20 -> 3
A6: =Poule!D21 -> 18:09:00 | B6: =Poule!E21 -> 00:00:00 | C6: =Poule!G21 -> PC TEAM 3 | D6: =Poule!M21 -> -- | E6: =Poule!N21 -> PC TEAM 4 | F6: =Poule!U21 -> 3 | G6: =Poule!V21 -> -- | H6: =Poule!W21 -> 2 | J6: =Poule!Y21 -> 3 | L6: =Poule!AA21 -> 0
A7: =Poule!D22 -> 18:35:00 | B7: =Poule!E22 -> 00:00:00 | C7: =Poule!G22 -> PC TEAM 4 | D7: =Poule!M22 -> -- | E7: =Poule!N22 -> PC TEAM 1 | F7: =Poule!U22 -> 3 | G7: =Poule!V22 -> -- | H7: =Poule!W22 -> 1 | J7: =Poule!Y22 -> 3 | L7: =Poule!AA22 -> 0
A8: =Poule!D23 -> 19:01:00 | B8: =Poule!E23 -> 00:00:00 | C8: =Poule!G23 -> PC TEAM 2 | D8: =Poule!M23 -> -- | E8: =Poule!N23 -> PC TEAM 3 | F8: =Poule!U23 -> 2 | G8: =Poule!V23 -> -- | H8: =Poule!W23 -> 1 | J8: =Poule!Y23 -> 3 | L8: =Poule!AA23 -> 0
A9: =Poule!D24 -> 19:27:00 | B9: =Poule!E24 -> 00:00:00 | C9: =Poule!G24 -> PC TEAM 1 | D9: =Poule!M24 -> -- | E9: =Poule!N24 -> PC TEAM 3 | F9: =Poule!U24 -> 1 | G9: =Poule!V24 -> -- | H9: =Poule!W24 -> 0 | J9: =Poule!Y24 -> 3 | L9: =Poule!AA24 -> 0
A10: =Poule!D25 -> 19:53:00 | B10: =Poule!E25 -> 00:00:00 | C10: =Poule!G25 -> PC TEAM 4 | D10: =Poule!M25 -> -- | E10: =Poule!N25 -> PC TEAM 2 | F10: =Poule!U25 -> 2 | G10: =Poule!V25 -> -- | H10: =Poule!W25 -> 1 | J10: =Poule!Y25 -> 3 | L10: =Poule!AA25 -> 0
A13: =Poule!AD3 -> Stand | B13: =Poule!AE5 -> Groep 3 | F13: =Poule!AK5 -> V | G13: =Poule!AL5 -> T | H13: =Poule!AM5 -> P | I13: =Poule!AN3 -> Gewonnen | J13: =Poule!AO3 -> Gelijk | K13: =Poule!AP3 -> Verloren | L13: =Poule!AQ3 -> Saldo
A14: =Poule!AD4 -> 0 | I14: =Poule!AN4 -> 0 | J14: =Poule!AO4 -> 0 | K14: =Poule!AP4 -> 0 | L14: =Poule!AQ4 -> 0
A15: =Poule!AD5 -> 0 | I15: =Poule!AN5 -> 0 | J15: =Poule!AO5 -> 0 | K15: =Poule!AP5 -> 0 | L15: =Poule!AQ5 -> 0
A16: =Poule!AD6 -> 4 | B16: =Poule!AE6 -> PC TEAM 1 | F16: =Poule!AK6 -> 3 | G16: =Poule!AL6 -> 5 | H16: =Poule!AM6 -> 2.998 | I16: =Poule!AN6 -> 1 | J16: =Poule!AO6 -> 0 | K16: =Poule!AP6 -> 2 | L16: =Poule!AQ6 -> -2
A17: =Poule!AD7 -> 2 | B17: =Poule!AE7 -> PC TEAM 2 | F17: =Poule!AK7 -> 5 | G17: =Poule!AL7 -> 4 | H17: =Poule!AM7 -> 6.001 | I17: =Poule!AN7 -> 2 | J17: =Poule!AO7 -> 0 | K17: =Poule!AP7 -> 1 | L17: =Poule!AQ7 -> 1
A18: =Poule!AD8 -> 3 | B18: =Poule!AE8 -> PC TEAM 3 | F18: =Poule!AK8 -> 4 | G18: =Poule!AL8 -> 5 | H18: =Poule!AM8 -> 2.999 | I18: =Poule!AN8 -> 1 | J18: =Poule!AO8 -> 0 | K18: =Poule!AP8 -> 2 | L18: =Poule!AQ8 -> -1
A19: =Poule!AD9 -> 1 | B19: =Poule!AE9 -> PC TEAM 4 | F19: =Poule!AK9 -> 7 | G19: =Poule!AL9 -> 5 | H19: =Poule!AM9 -> 6.002 | I19: =Poule!AN9 -> 2 | J19: =Poule!AO9 -> 0 | K19: =Poule!AP9 -> 1 | L19: =Poule!AQ9 -> 2

Sheet GROEP-4
A1: MEGA TOERNOOI | M1: Scores By: OnlineExcelCursus.NL
A4: =Poule!AC19 -> Tijd | B4: =Poule!AD19 -> 0 | C4: =Poule!AF19 -> HAL 2 | F4: =Poule!AT19 -> Uitslag | G4: =Poule!AU19 -> 0 | H4: =Poule!AV19 -> 0 | J4: =Poule!AX19 -> Punten | K4: =Poule!AY19 -> 0 | L4: =Poule!AZ19 -> 0
A5: =Poule!AC20 -> 17:43:00 | B5: =Poule!AD20 -> 00:00:00 | C5: =Poule!AF20 -> PD TEAM 1 | D5: =Poule!AL20 -> -- | E5: =Poule!AM20 -> PD TEAM 2 | F5: =Poule!AT20 -> 3 | G5: =Poule!AU20 -> -- | H5: =Poule!AV20 -> 2 | J5: =Poule!Y20 -> 0 | L5: =Poule!AA20 -> 3
A6: =Poule!AC21 -> 18:09:00 | B6: =Poule!AD21 -> 00:00:00 | C6: =Poule!AF21 -> PD TEAM 3 | D6: =Poule!AL21 -> -- | E6: =Poule!AM21 -> PD TEAM 4 | F6: =Poule!AT21 -> 1 | G6: =Poule!AU21 -> -- | H6: =Poule!AV21 -> 2 | J6: =Poule!Y21 -> 3 | L6: =Poule!AA21 -> 0
A7: =Poule!AC22 -> 18:35:00 | B7: =Poule!AD22 -> 00:00:00 | C7: =Poule!AF22 -> PD TEAM 4 | D7: =Poule!AL22 -> -- | E7: =Poule!AM22 -> PD TEAM 1 | F7: =Poule!AT22 -> 1 | G7: =Poule!AU22 -> -- | H7: =Poule!AV22 -> 1 | J7: =Poule!Y22 -> 3 | L7: =Poule!AA22 -> 0
A8: =Poule!AC23 -> 19:01:00 | B8: =Poule!AD23 -> 00:00:00 | C8: =Poule!AF23 -> PD TEAM 2 | D8: =Poule!AL23 -> -- | E8: =Poule!AM23 -> PD TEAM 3 | F8: =Poule!AT23 -> 0 | G8: =Poule!AU23 -> -- | H8: =Poule!AV23 -> 0 | J8: =Poule!Y23 -> 3 | L8: =Poule!AA23 -> 0
A9: =Poule!AC24 -> 19:27:00 | B9: =Poule!AD24 -> 00:00:00 | C9: =Poule!AF24 -> PD TEAM 2 | D9: =Poule!AL24 -> -- | E9: =Poule!AM24 -> PD TEAM 4 | F9: =Poule!AT24 -> 1 | G9: =Poule!AU24 -> -- | H9: =Poule!AV24 -> 1 | J9: =Poule!Y24 -> 3 | L9: =Poule!AA24 -> 0
A10: =Poule!AC25 -> 19:53:00 | B10: =Poule!AD25 -> 00:00:00 | C10: =Poule!AF25 -> PD TEAM 1 | D10: =Poule!AL25 -> -- | E10: =Poule!AM25 -> PD TEAM 3 | F10: =Poule!AT25 -> 0 | G10: =Poule!AU25 -> -- | H10: =Poule!AV25 -> 2 | J10: =Poule!Y25 -> 3 | L10: =Poule!AA25 -> 0
A13: =Poule!AR3 -> Stand | B13: =Poule!AS5 -> Groep 4 | F13: =Poule!AY5 -> V | G13: =Poule!AZ5 -> T | H13: =Poule!BA5 -> P | I13: =Poule!BB3 -> Gewonnen | J13: =Poule!BC3 -> Gelijk | K13: =Poule!BD3 -> Verloren | L13: =Poule!BE3 -> Saldo
A14: =Poule!AR4 -> 0 | I14: =Poule!BB4 -> 0 | J14: =Poule!BC4 -> 0 | K14: =Poule!BD4 -> 0 | L14: =Poule!BE4 -> 0
A15: =Poule!AR5 -> 0 | I15: =Poule!BB5 -> 0 | J15: =Poule!BC5 -> 0 | K15: =Poule!BD5 -> 0 | L15: =Poule!BE5 -> 0
A16: =Poule!AR6 -> 3 | B16: =Poule!AS6 -> PD TEAM 1 | F16: =Poule!AY6 -> 4 | G16: =Poule!AZ6 -> 5 | H16: =Poule!BA6 -> 3.999 | I16: =Poule!BB6 -> 1 | J16: =Poule!BC6 -> 1 | K16: =Poule!BD6 -> 1 | L16: =Poule!BE6 -> -1
A17: =Poule!AR7 -> 4 | B17: =Poule!AS7 -> PD TEAM 2 | F17: =Poule!AY7 -> 3 | G17: =Poule!AZ7 -> 4 | H17: =Poule!BA7 -> 1.999 | I17: =Poule!BB7 -> 0 | J17: =Poule!BC7 -> 2 | K17: =Poule!BD7 -> 1 | L17: =Poule!BE7 -> -1
A18: =Poule!AR8 -> 2 | B18: =Poule!AS8 -> PD TEAM 3 | F18: =Poule!AY8 -> 3 | G18: =Poule!AZ8 -> 2 | H18: =Poule!BA8 -> 4.001 | I18: =Poule!BB8 -> 1 | J18: =Poule!BC8 -> 1 | K18: =Poule!BD8 -> 1 | L18: =Poule!BE8 -> 1
A19: =Poule!AR9 -> 1 | B19: =Poule!AS9 -> PD TEAM 4 | F19: =Poule!AY9 -> 4 | G19: =Poule!AZ9 -> 3 | H19: =Poule!BA9 -> 5.001 | I19: =Poule!BB9 -> 1 | J19: =Poule!BC9 -> 2 | K19: =Poule!BD9 -> 0 | L19: =Poule!BE9 -> 1
